bitfinex/quotes_BTCUSD_20250508
["timestamp","ask_amount","ask_price","bid_price","bid_amount"]
[1746712845476,5.054e-05,99351.0,99350.0,5.21021411]
[1746712845654,5.054e-05,99351.0,99350.0,5.20821411]
[1746712846064,5.054e-05,99351.0,99350.0,5.21221411]
[1746712848003,5.054e-05,99351.0,99350.0,5.61221411]
[1746712848203,5.054e-05,99351.0,99350.0,5.60821411]
[1746712848401,5.054e-05,99351.0,99350.0,5.61321411]
[1746712848861,5.054e-05,99351.0,99350.0,5.61121411]
[1746712849204,5.054e-05,99351.0,99350.0,5.61421411]
[1746712849402,0.002,99370.0,99369.0,0.54127001]
[1746712849763,0.002,99370.0,99369.0,9.05143713]
[1746712850085,0.21128493,99392.0,99378.0,0.01006258]
[1746712850352,0.01006147,99389.0,99384.0,0.01006198]
[1746712850614,0.01006147,99389.0,99385.0,4.557179]
[1746712850615,0.01006177,99386.0,99385.0,4.557179]
[1746712850728,0.02656177,99386.0,99385.0,0.01488979]
[1746712850936,0.01006238,99380.0,99377.0,0.34]
[1746712851244,0.01006218,99382.0,99377.0,0.03427413]
[1746712851444,0.01006228,99381.0,99377.0,0.34]
[1746712851629,0.01006208,99383.0,99378.0,0.05017863]
[1746712851830,0.01006218,99382.0,99379.0,0.34]
[1746712852033,0.21130736,99382.0,99379.0,0.34]
[1746712852367,0.001,99380.0,99379.0,0.34]
[1746712852538,0.20124669,99381.0,99379.0,0.34]
[1746712852750,0.2123046,99383.0,99380.0,0.07772135]
[1746712852946,0.01006208,99383.0,99380.0,0.07772135]
[1746712853154,0.20124395,99382.0,99380.0,0.07772135]
[1746712853701,0.20124395,99382.0,99379.0,0.34]
[1746712853702,0.20124773,99380.0,99379.0,0.34]
[1746712853914,0.20124773,99380.0,99377.0,0.04247589]
[1746712853915,0.20125178,99378.0,99377.0,0.04247589]
[1746712854115,0.21665178,99378.0,99377.0,0.04247589]
[1746712854345,0.21665178,99378.0,99377.0,0.00013731]
[1746712854501,0.23175178,99378.0,99377.0,0.00013731]
[1746712854703,0.21665178,99378.0,99377.0,0.00013731]
[1746712855687,0.21765178,99378.0,99377.0,0.00013731]
[1746712857114,0.22065178,99378.0,99377.0,0.00013731]
[1746712857320,0.21965178,99378.0,99377.0,0.00013731]
[1746712857730,0.22265178,99378.0,99377.0,0.00013731]
[1746712858557,0.22265178,99378.0,99377.0,0.02453599]
[1746712858733,0.22265178,99378.0,99377.0,0.00013731]
[1746712858918,0.23905178,99378.0,99377.0,0.00013731]
[1746712860380,0.3397187,99378.0,99377.0,0.00013731]
[1746712861192,0.23905178,99378.0,99377.0,0.00013731]
[1746712862112,0.22265178,99378.0,99377.0,0.00013731]
[1746712863750,0.20725178,99378.0,99377.0,0.00013731]
[1746712864505,0.006,99378.0,99377.0,0.00013731]
[1746712864709,0.006,99378.0,99377.0,0.07641572]
[1746712864916,0.02501567,99378.0,99377.0,0.07641572]
[1746712865063,0.0225,99378.0,99377.0,0.00013731]
[1746712865279,0.02501585,99378.0,99377.0,0.00013731]
[1746712865894,0.04001585,99378.0,99377.0,0.00013731]
[1746712867559,0.02501585,99378.0,99377.0,0.00013731]
[1746712868055,0.0225,99378.0,99377.0,0.00013731]
[1746712868359,0.0213,99378.0,99377.0,0.00013731]
[1746712869793,0.0219,99378.0,99377.0,0.00013731]
[1746712870092,0.20126798,99370.0,99368.0,0.19100842]
[1746712870385,0.20126798,99370.0,99368.0,0.08250349]
[1746712872183,0.01006329,99371.0,99368.0,0.28377513]
[1746712872389,0.01006329,99371.0,99368.0,0.08250349]
[1746712872390,0.20126842,99370.0,99368.0,0.08250349]
[1746712873122,0.20127203,99368.0,99366.0,0.34]
[1746712873320,0.20127203,99368.0,99355.0,0.02956522]
[1746712873321,0.20129634,99356.0,99355.0,0.02956522]
[1746712873682,0.20130238,99354.0,99350.0,0.37672159]
[1746712873892,0.20130283,99353.0,99351.0,0.06139678]
[1746712874108,0.01006502,99354.0,99351.0,0.06139678]
[1746712874306,0.01006481,99356.0,99351.0,0.26270269]
[1746712874471,0.01006481,99356.0,99353.0,0.01006512]
[1746712874667,0.0100642,99362.0,99360.0,0.20128762]
[1746712874873,0.0100642,99362.0,99361.0,0.02214171]
[1746712874874,0.21134936,99362.0,99361.0,0.02214171]
[1746712875113,0.20128419,99362.0,99361.0,0.02214171]
[1746712875317,0.0100641,99363.0,99360.0,0.01006441]
[1746712875520,0.21135038,99362.0,99358.0,0.01006461]
[1746712875685,0.21135038,99362.0,99359.0,0.21135467]
[1746712875883,0.0100635,99369.0,99360.0,0.0154]
[1746712876179,0.20127203,99368.0,99361.0,0.01006431]
[1746712876420,0.20128419,99362.0,99361.0,4.557179]
[1746712876803,0.21134789,99363.0,99360.0,4.557179]
[1746712877030,0.21134789,99363.0,99360.0,4.75846719]
[1746712877232,0.20128621,99361.0,99359.0,0.01006451]
[1746712877441,0.21134943,99362.0,99360.0,4.557179]
[1746712878101,0.20128621,99361.0,99360.0,4.557179]
[1746712878276,0.20128621,99361.0,99358.0,0.21135658]
[1746712878463,0.20128444,99362.0,99360.0,0.20128815]
[1746712878662,0.21134789,99363.0,99361.0,4.557179]
[1746712878864,0.20228419,99362.0,99360.0,4.557179]
[1746712882534,0.22706285,99356.0,99354.0,0.34]
[1746712882685,0.20130445,99352.0,99351.0,0.03049975]
[1746712882891,0.20130445,99352.0,99350.0,0.00213708]
[1746712882892,0.0151,99351.0,99350.0,0.00213708]
[1746712883093,0.01761636,99351.0,99350.0,0.00213708]
[1746712883299,0.21908538,99351.0,99350.0,0.00213708]
[1746712883508,0.21656902,99351.0,99350.0,0.00213708]
[1746712884114,0.13126692,99351.0,99350.0,0.00213708]
[1746712884328,0.13378376,99351.0,99350.0,0.00213708]
[1746712884933,0.13478376,99351.0,99350.0,0.00213708]
[1746712885133,0.0161,99351.0,99350.0,0.00213708]
[1746712885430,0.01961655,99351.0,99350.0,0.00213708]
[1746712886631,0.002,99351.0,99350.0,0.00213708]
[1746712887691,0.20330647,99351.0,99350.0,0.00213708]
[1746712887886,0.002,99351.0,99350.0,0.00213708]
[1746712888448,0.21910647,99351.0,99350.0,0.00213708]
[1746712888647,0.20330647,99351.0,99350.0,0.00213708]
[1746712890285,0.21920647,99351.0,99350.0,0.00213708]
[1746712890677,0.32033625,99351.0,99350.0,0.00213708]
[1746712890880,0.33567339,99351.0,99350.0,0.00213708]
[1746712893401,0.20330647,99351.0,99350.0,0.00213708]
[1746712895504,0.23460647,99351.0,99350.0,0.00213708]
[1746712895953,0.33527339,99351.0,99350.0,0.00213708]
[1746712896154,0.43220986,99351.0,99350.0,0.00213708]
[1746712896977,0.43120986,99351.0,99350.0,0.00213708]
[1746712897626,0.33427339,99351.0,99350.0,0.00213708]
[1746712898271,0.33327339,99351.0,99350.0,0.00213708]
[1746712898491,0.33427339,99351.0,99350.0,0.00213708]
[1746712898710,0.21800647,99351.0,99350.0,0.00213708]
[1746712899352,0.21700647,99351.0,99350.0,0.00213708]
[1746712899579,0.21800647,99351.0,99350.0,0.00213708]
[1746712900191,0.21900647,99351.0,99350.0,0.00213708]
[1746712900444,0.23400647,99351.0,99350.0,0.00313708]
[1746712900707,0.33467339,99351.0,99350.0,0.00313708]
[1746712901711,0.33267339,99351.0,99350.0,0.00313708]
[1746712902092,0.33367339,99351.0,99350.0,0.00313708]
[1746712904942,0.31867339,99351.0,99350.0,0.00313708]
[1746712905295,0.20230647,99351.0,99350.0,0.00313708]
[1746712911207,0.20230647,99351.0,99350.0,0.00313708]
[1746712912666,0.31897339,99351.0,99350.0,0.00313708]
[1746712912888,0.33437339,99351.0,99350.0,0.00313708]
[1746712915327,0.31897339,99351.0,99350.0,0.00313708]
[1746712915625,0.20230647,99351.0,99350.0,0.00313708]
[1746712918382,0.21780647,99351.0,99350.0,0.00313708]
[1746712919180,0.20230647,99351.0,99350.0,0.00313708]
[1746712921226,0.001,99351.0,99350.0,4.79332458]
[1746712921429,0.001,99351.0,99350.0,4.8939915]
[1746712921709,0.001,99351.0,99350.0,5.2339915]
[1746712921970,0.001,99351.0,99350.0,7.72575727]
[1746712922107,0.001,99351.0,99350.0,9.51125827]
[1746712922313,0.001,99351.0,99350.0,9.91425827]
[1746712922607,0.20123251,99388.0,99350.0,9.91425827]
[1746712922608,0.21129351,99388.0,99379.0,0.0158]
[1746712922864,0.2113004,99385.0,99383.0,0.0156]
[1746712923020,0.01006198,99384.0,99380.0,0.2223303]
[1746712923228,0.21130328,99384.0,99382.0,0.0156]
[1746712923456,0.01006177,99386.0,99381.0,0.02205049]
[1746712923667,0.21130282,99384.0,99381.0,0.02205049]
[1746712923872,0.20375864,99383.0,99382.0,0.09331424]
[1746712924082,0.20375864,99383.0,99379.0,0.34]
[1746712924083,0.20124773,99380.0,99379.0,0.34]
[1746712924278,0.01006431,99361.0,99355.0,0.015]
[1746712924484,0.010064,99364.0,99353.0,0.01006512]
[1746712924485,0.0100642,99362.0,99360.0,0.34]
[1746712924682,0.0100642,99362.0,99361.0,0.44066692]
[1746712924881,0.20128281,99363.0,99362.0,0.34]
[1746712925087,0.01006339,99370.0,99362.0,0.34]
[1746712925088,0.21133212,99370.0,99362.0,0.34]
[1746712925248,0.0100635,99369.0,99363.0,0.04233306]
[1746712925455,0.10066692,99380.0,99363.0,0.04233306]
[1746712925456,0.01006228,99381.0,99375.0,0.2012567]
[1746712925655,0.01006228,99381.0,99371.0,0.01006329]
[1746712925656,0.01006198,99384.0,99380.0,0.20124657]
[1746712925859,0.01006228,99381.0,99378.0,0.34]
[1746712926105,0.01006228,99381.0,99378.0,0.3551]
[1746712926689,0.20124906,99380.0,99378.0,0.34]
[1746712926905,0.20129481,99380.0,99379.0,0.06218867]
[1746712927268,0.21131358,99379.0,99375.0,0.23973501]
[1746712927472,0.01006248,99379.0,99375.0,0.23973501]
[1746712927682,0.20129481,99380.0,99375.0,0.23973501]
[1746712927683,0.21135719,99380.0,99376.0,0.20125445]
[1746712927922,4.575e-05,99380.0,99377.0,0.22848599]
[1746712928245,0.00104575,99380.0,99377.0,0.22848599]
[1746712928447,0.00104575,99380.0,99378.0,0.20125041]
[1746712928647,0.00104575,99380.0,99379.0,0.03847825]
[1746712928881,0.00104575,99380.0,99379.0,4.61075725]
[1746712929007,4.575e-05,99380.0,99379.0,4.61075725]
[1746712929223,4.575e-05,99380.0,99379.0,4.62725725]
[1746712929629,4.575e-05,99380.0,99379.0,0.57667825]
[1746712929828,0.00104575,99380.0,99379.0,0.03847825]
[1746712930231,0.20229348,99380.0,99379.0,0.03847825]
[1746712930555,0.20229348,99380.0,99369.0,0.0153]
[1746712930556,0.01006279,99376.0,99371.0,0.01006329]
[1746712930760,0.20125988,99374.0,99372.0,1.3298]
[1746712930996,0.0100638,99366.0,99363.0,0.34]
[1746712931172,0.01006289,99375.0,99371.0,0.20126504]
[1746712931349,0.00251582,99374.0,99372.0,4.557179]
[1746712931550,0.01006309,99373.0,99368.0,0.20127203]
[1746712931783,0.01006309,99373.0,99371.0,0.001]
[1746712931953,0.20126159,99374.0,99372.0,3.308]
[1746712932163,0.20126159,99374.0,99372.0,1.1441]
[1746712932441,0.01006289,99375.0,99372.0,2.42976262]
[1746712932627,0.01006269,99377.0,99373.0,0.20126119]
[1746712932763,0.01006279,99376.0,99371.0,0.20226496]
[1746712932967,0.01006289,99375.0,99372.0,4.557179]
[1746712933170,0.21132142,99375.0,99372.0,4.557179]
[1746712933803,0.21132142,99375.0,99372.0,2.5829]
[1746712934005,0.0100641,99363.0,99355.0,0.3830872]
[1746712934380,4.575e-05,99380.0,99355.0,0.3830872]
[1746712934381,0.01006441,99360.0,99355.0,0.0264872]
[1746712934588,0.20129526,99357.0,99356.0,0.1533]
[1746712934825,0.20130647,99351.0,99350.0,0.36665617]
[1746712935029,0.20130448,99352.0,99350.0,0.02799724]
[1746712935230,0.01006512,99353.0,99350.0,0.02799724]
[1746712935435,0.21136415,99355.0,99350.0,0.22930481]
[1746712935797,0.20130524,99352.0,99350.0,0.002]
[1746712935998,0.00251631,99351.0,99350.0,0.002]
[1746712937513,0.01761631,99351.0,99350.0,0.002]
[1746712937719,0.00251631,99351.0,99350.0,0.002]
[1746712938217,0.01761631,99351.0,99350.0,0.002]
[1746712938985,0.01861631,99351.0,99350.0,0.002]
[1746712939141,0.001,99351.0,99350.0,0.002]
[1746712940233,0.002,99351.0,99350.0,0.002]
[1746712941825,0.002,99351.0,99350.0,0.0172]
[1746712943204,0.002,99351.0,99350.0,8.28862777]
[1746712943835,0.002,99351.0,99350.0,8.68862777]
[1746712944035,4.575e-05,99380.0,99377.0,0.01006269]
[1746712944203,4.575e-05,99380.0,99378.0,0.20125178]
[1746712944404,4.575e-05,99380.0,99379.0,0.04226291]
[1746712945434,4.575e-05,99380.0,99379.0,4.61464191]
[1746712945630,4.575e-05,99380.0,99379.0,8.37510091]
[1746712947060,0.00204575,99380.0,99379.0,8.37510091]
[1746712947236,0.00204575,99380.0,99379.0,7.63720991]
[1746712947457,4.575e-05,99380.0,99379.0,7.63720991]
[1746712947665,4.575e-05,99380.0,99379.0,7.63820991]
[1746712947876,4.575e-05,99380.0,99379.0,7.63920991]
[1746712948897,4.575e-05,99380.0,99379.0,0.05946291]
[1746712949233,4.575e-05,99380.0,99379.0,5.76462091]
[1746712953249,4.575e-05,99380.0,99379.0,5.76425112]
[1746712956770,4.575e-05,99380.0,99379.0,5.96550088]
[1746712963889,0.002,99395.0,99394.0,0.20121938]
[1746712964090,0.00204573,99395.0,99394.0,0.58126778]
[1746712964300,0.00204573,99395.0,99394.0,9.01391355]
[1746712965563,0.00404573,99395.0,99394.0,9.01391355]
[1746712965803,0.00204573,99395.0,99394.0,8.81269417]
[1746712966016,0.00204573,99395.0,99394.0,8.81369417]
[1746712966281,0.00604573,99395.0,99394.0,9.01491355]
[1746712966681,0.00204573,99395.0,99394.0,9.04028883]
[1746712967116,0.00204573,99395.0,99394.0,9.44028883]
[1746712968932,0.0039829,99414.0,99413.0,0.20118093]
[1746712969153,0.0039829,99414.0,99413.0,8.88501205]
[1746712969302,0.0039829,99414.0,99413.0,9.01561982]
[1746712969505,0.0039829,99414.0,99413.0,7.98866782]
[1746712969906,0.0039829,99414.0,99413.0,7.97326782]
[1746712970113,0.0039829,99414.0,99413.0,5.67377505]
[1746712970326,0.0039829,99414.0,99413.0,4.02719605]
[1746712971100,0.0069829,99414.0,99413.0,0.58307405]
[1746712971531,0.00402863,99414.0,99413.0,5.85990905]
[1746712971737,0.00502863,99414.0,99413.0,1.37581593]
[1746712971940,0.00502863,99414.0,99413.0,1.174635]
[1746712972153,0.00502863,99414.0,99413.0,2.127117]
[1746712972154,0.02012863,99414.0,99413.0,2.127117]
[1746712972350,0.02012863,99414.0,99413.0,3.480156]
[1746712972580,0.02012863,99414.0,99413.0,0.4625]
[1746712972795,0.02012863,99414.0,99413.0,1.100718]
[1746712972998,0.02012863,99414.0,99413.0,1.086018]
[1746712974694,0.02012863,99414.0,99413.0,0.978218]
[1746712974891,0.02012863,99414.0,99413.0,4.539818]
[1746712975317,0.00502863,99414.0,99413.0,1.104218]
[1746712977955,0.00502863,99414.0,99413.0,1.119918]
[1746712979446,0.00502863,99414.0,99413.0,1.104218]
[1746712982363,0.00502863,99414.0,99413.0,1.25132577]
[1746712983594,0.00402863,99414.0,99413.0,1.25132577]
[1746712984283,0.002,99420.0,99419.0,0.21570964]
[1746712984408,0.002,99420.0,99419.0,8.65081456]
[1746712984796,0.002,99420.0,99419.0,0.34887656]
[1746712985001,0.002,99420.0,99419.0,0.68887656]
[1746712985208,0.002,99420.0,99419.0,8.99081456]
[1746712985422,0.002,99445.0,99444.0,0.20111821]
[1746712985628,0.01885739,99445.0,99444.0,0.22324128]
[1746712985879,0.01885739,99445.0,99444.0,0.02212307]
[1746712986356,0.01885739,99445.0,99444.0,0.02583828]
[1746712986561,0.21117412,99444.0,99439.0,0.21118473]
[1746712986789,0.21362998,99445.0,99441.0,0.20112361]
[1746712986990,0.02555601,99443.0,99441.0,0.02608888]
[1746712987212,0.01005611,99442.0,99439.0,0.20112825]
[1746712987350,0.02555611,99442.0,99439.0,0.20112825]
[1746712987556,0.0155,99442.0,99440.0,0.20112467]
[1746712987753,0.21117613,99444.0,99440.0,0.20112467]
[1746712987971,0.0161,99443.0,99440.0,0.20112467]
[1746712988231,0.02615601,99443.0,99440.0,0.20112467]
[1746712988461,0.01005621,99441.0,99438.0,0.20113032]
[1746712988663,0.0166,99441.0,99438.0,0.20113032]
[1746712988944,0.0166,99441.0,99431.0,0.01005722]
[1746712988945,0.20114687,99430.0,99416.0,0.01005874]
[1746712989269,0.0164,99429.0,99424.0,0.01005793]
[1746712989381,0.0164,99428.0,99427.0,0.01005763]
[1746712990340,0.01005732,99430.0,99426.0,0.21121145]
[1746712990542,0.0162,99429.0,99428.0,0.21120797]
[1746712990745,0.0162,99437.0,99434.0,0.01005692]
[1746712990950,0.0163,99436.0,99434.0,0.20113722]
[1746712991102,0.0163,99436.0,99435.0,0.04425066]
[1746712991310,0.01005651,99438.0,99435.0,0.04425066]
[1746712991620,0.21118741,99438.0,99435.0,0.04425066]
[1746712991750,0.0183,99437.0,99435.0,0.04425066]
[1746712991953,0.0183,99437.0,99435.0,0.24538592]
[1746712992191,0.0163,99437.0,99436.0,0.02109086]
[1746712992567,0.002,99438.0,99436.0,0.02109086]
[1746712992568,0.002,99438.0,99437.0,0.20113237]
[1746712992871,0.002,99438.0,99437.0,4.75831137]
[1746712993073,0.002,99438.0,99437.0,4.80256203]
[1746712993938,0.004,99438.0,99437.0,4.80256203]
[1746712994329,0.002,99438.0,99437.0,4.80256203]
[1746712994546,0.00245739,99445.0,99439.0,0.01005641]
[1746712994833,0.00245739,99445.0,99443.0,0.20111959]
[1746712995029,0.00245739,99445.0,99444.0,8.301938]
[1746712995618,0.00245739,99445.0,99444.0,7.396095]
[1746712996779,0.00445739,99445.0,99444.0,7.396095]
[1746712997084,0.00445739,99445.0,99444.0,7.35379866]
[1746712997292,0.00545739,99445.0,99444.0,7.32058966]
[1746712997466,0.00645739,99445.0,99444.0,7.32058966]
[1746712997645,0.00345739,99445.0,99444.0,7.32058966]
[1746712997993,0.00445739,99445.0,99444.0,7.32058966]
[1746712998197,0.00445739,99445.0,99444.0,6.83552966]
[1746712998624,0.00445739,99445.0,99444.0,0.04425066]
[1746712998744,0.00445739,99445.0,99443.0,0.20111959]
[1746712998943,0.00445739,99445.0,99444.0,6.782222]
[1746712999377,0.21117412,99444.0,99441.0,0.20112355]
[1746712999575,0.20111856,99444.0,99442.0,5.11269]
[1746712999775,0.00445739,99445.0,99443.0,0.20111977]
[1746713000012,0.00445739,99445.0,99443.0,6.35437377]
[1746713000227,0.00345739,99445.0,99444.0,6.043562]
[1746713000581,0.00445739,99445.0,99444.0,6.043562]
[1746713001033,0.00345739,99445.0,99444.0,6.043562]
[1746713001215,0.00345739,99445.0,99444.0,4.600156]
[1746713001411,0.00345739,99445.0,99444.0,4.026256]
[1746713001612,0.01875739,99445.0,99444.0,1.198082]
[1746713001816,0.01975739,99445.0,99444.0,1.078082]
[1746713002197,0.01975739,99445.0,99444.0,0.784682]
[1746713002396,0.01975739,99445.0,99439.0,0.20112658]
[1746713002397,0.0153,99444.0,99441.0,0.20112264]
[1746713002630,0.00445739,99445.0,99442.0,0.72040331]
[1746713002631,0.0153,99443.0,99442.0,0.72040331]
[1746713003502,0.00345739,99445.0,99443.0,0.20111857]
[1746713003703,0.00345739,99445.0,99443.0,0.77071757]
[1746713004035,0.00345739,99445.0,99444.0,6.080796]
[1746713004036,0.00245739,99445.0,99444.0,6.080796]
[1746713004856,0.00245739,99445.0,99444.0,5.971105]
[1746713005044,0.00445739,99445.0,99444.0,5.039226]
[1746713005244,0.00345739,99445.0,99444.0,4.902647]
[1746713005476,0.00345739,99445.0,99444.0,2.765547]
[1746713005626,0.00445739,99445.0,99444.0,2.765547]
[1746713005828,0.00445739,99445.0,99444.0,2.750452]
[1746713006072,0.00445739,99445.0,99442.0,2.96477339]
[1746713006267,0.00345739,99445.0,99443.0,4.469722]
[1746713006478,0.00445739,99445.0,99443.0,4.67084104]
[1746713006682,0.00445739,99445.0,99444.0,2.904965]
[1746713006894,0.00445739,99445.0,99444.0,2.837865]
[1746713007114,0.00345739,99445.0,99444.0,2.837865]
[1746713007285,0.01965739,99445.0,99444.0,1.8027]
[1746713007467,0.20111821,99444.0,99439.0,3.03242875]
[1746713007668,0.01005661,99437.0,99431.0,0.34]
[1746713007871,0.21118732,99438.0,99433.0,0.34]
[1746713008073,0.0154,99437.0,99434.0,5.67357192]
[1746713008277,0.21118261,99440.0,99437.0,0.20113146]
[1746713008582,0.21118261,99440.0,99438.0,4.557179]
[1746713008778,0.01005631,99440.0,99438.0,4.557179]
[1746713008984,0.21463106,99445.0,99441.0,0.2011239]
[1746713009195,0.00345739,99445.0,99442.0,0.20112014]
[1746713009392,0.00245739,99445.0,99443.0,5.76567953]
[1746713009628,0.00245739,99445.0,99444.0,4.557179]
[1746713010467,0.00345739,99445.0,99444.0,4.557179]
[1746713010654,0.00345739,99445.0,99443.0,0.0221233]
[1746713010807,0.23113037,99445.0,99441.0,0.21117907]
[1746713011012,0.01895739,99445.0,99443.0,0.20111919]
[1746713011208,0.03101319,99445.0,99442.0,0.20112166]
[1746713011506,0.03101319,99445.0,99443.0,2.122473]
[1746713011681,0.0155,99444.0,99443.0,2.122473]
[1746713011883,0.01005661,99437.0,99433.0,0.21119709]
[1746713012039,0.0151,99436.0,99433.0,2.40349709]
[1746713012242,0.0151,99436.0,99434.0,0.20113679]
[1746713012436,0.01005833,99420.0,99415.0,0.01005884]
[1746713012628,0.01005773,99426.0,99417.0,1.02212253]
[1746713012844,0.01005742,99429.0,99423.0,0.01005803]
[1746713013064,0.20115665,99425.0,99424.0,4.0316]
[1746713013268,0.0159,99426.0,99423.0,2.27926039]
[1746713013482,0.0154,99425.0,99424.0,1.2696]
[1746713013879,0.20116272,99422.0,99421.0,1.570303]
[1746713014101,0.20116658,99421.0,99417.0,1.84900243]
[1746713014311,0.0154,99419.0,99418.0,1.611592]
[1746713014545,0.01005793,99424.0,99421.0,0.01005823]
[1746713014988,0.002,99425.0,99422.0,4.56723713]
[1746713015158,0.002,99425.0,99423.0,0.20115968]
[1746713015355,0.002,99425.0,99423.0,4.77443868]
[1746713015559,0.002,99425.0,99424.0,8.318038]
[1746713016298,0.21119186,99436.0,99433.0,0.01005702]
[1746713016610,0.21119142,99436.0,99433.0,0.21119613]
[1746713016874,0.21119378,99435.0,99431.0,0.20114363]
[1746713017076,0.21119858,99433.0,99431.0,2.290995]
[1746713017250,0.21119858,99433.0,99427.0,0.01005763]
[1746713017251,0.01005712,99432.0,99427.0,0.01005763]
[1746713017548,0.01005722,99431.0,99428.0,0.911425]
[1746713017761,0.01005732,99430.0,99429.0,0.06534152]
[1746713017926,0.01005752,99428.0,99425.0,0.56581198]
[1746713018286,0.21120597,99429.0,99426.0,1.09058668]
[1746713018459,0.21120597,99429.0,99427.0,0.930667]
[1746713018674,0.21120597,99429.0,99426.0,1.09678752]
[1746713018842,0.21120597,99429.0,99427.0,0.934193]
[1746713019267,0.21120597,99429.0,99427.0,0.932643]
[1746713019463,0.01005803,99423.0,99421.0,0.20116462]
[1746713019637,0.0157,99424.0,99422.0,5.319138]
[1746713019839,0.01005752,99428.0,99425.0,0.21121291]
[1746713020066,0.0162,99427.0,99426.0,0.772024]
[1746713020274,0.08034024,99449.0,99426.0,0.772024]
[1746713020275,0.01005671,99436.0,99429.0,0.01005742]
[1746713020439,0.21119337,99435.0,99432.0,0.20114211]
[1746713020640,0.21118953,99437.0,99434.0,0.20113833]
[1746713020845,0.21118953,99437.0,99430.0,0.21120196]
[1746713020846,0.21119658,99434.0,99430.0,0.21120196]
[1746713021066,0.01005692,99434.0,99431.0,4.557179]
[1746713021225,0.21119543,99434.0,99431.0,4.557179]
[1746713021444,0.21119543,99434.0,99431.0,4.75832252]
[1746713021639,0.21119543,99434.0,99432.0,4.557179]
[1746713023282,0.01005742,99429.0,99425.0,0.20115643]
[1746713023518,0.20114871,99429.0,99426.0,6.63251414]
[1746713023748,0.20114871,99429.0,99427.0,1.964777]
[1746713023967,0.20114871,99429.0,99427.0,1.864123]
[1746713024205,0.22660613,99429.0,99426.0,5.48047727]
[1746713024438,0.22760613,99429.0,99427.0,1.864123]
[1746713024677,0.21120203,99431.0,99427.0,2.0753313]
[1746713024898,0.001,99429.0,99427.0,0.21121021]
[1746713025122,0.001,99429.0,99426.0,0.01005773]
[1746713025347,0.001,99429.0,99427.0,1.900358]
[1746713025537,0.001,99429.0,99428.0,0.20115058]
[1746713026687,0.001,99429.0,99427.0,7.011136]
[1746713026879,0.002,99429.0,99427.0,7.21228818]
[1746713027105,0.20115058,99428.0,99425.0,0.01005783]
[1746713027318,0.21320663,99429.0,99426.0,6.72511458]
[1746713027466,0.001,99429.0,99427.0,2.219432]
[1746713027671,0.20111007,99449.0,99427.0,2.219432]
[1746713027672,0.015,99444.0,99441.0,0.01005621]
[1746713027941,0.0158,99457.0,99444.0,0.20111821]
[1746713028145,0.0158,99457.0,99444.0,4.75829721]
[1746713028835,0.0158,99457.0,99444.0,0.20111821]
[1746713029133,0.0158,99457.0,99444.0,7.30434721]
[1746713030418,0.00251382,99456.0,99444.0,7.30434721]
[1746713030844,0.00345739,99445.0,99444.0,6.38253721]
[1746713033254,0.01915739,99445.0,99444.0,6.38253721]
[1746713033592,0.00345739,99445.0,99444.0,2.75095821]
[1746713034473,0.00345739,99445.0,99444.0,1.51786021]
[1746713034474,0.01915739,99445.0,99444.0,1.51786021]
[1746713036154,0.00345739,99445.0,99444.0,1.51786021]
[1746713039594,0.00345739,99445.0,99444.0,0.20111821]
[1746713039836,0.00345739,99445.0,99444.0,6.73576221]
[1746713040039,0.00345739,99445.0,99444.0,4.24118121]
[1746713040918,0.00345739,99445.0,99444.0,4.25718121]
[1746713043879,0.00345739,99445.0,99444.0,4.79068898]
[1746713044080,0.00345739,99445.0,99444.0,4.80598898]
[1746713044357,0.00345739,99445.0,99444.0,5.14598898]
[1746713044738,0.00345739,99445.0,99444.0,5.54598898]
[1746713045259,0.00245739,99445.0,99444.0,5.54598898]
[1746713046301,0.00245739,99445.0,99444.0,5.54698898]
[1746713047197,0.00245739,99445.0,99444.0,5.54798898]
[1746713047402,0.0005,99465.0,99464.0,0.20107777]
[1746713047596,0.00063719,99465.0,99464.0,6.62973477]
[1746713047794,0.00063719,99465.0,99464.0,8.50146577]
[1746713047989,0.00063719,99465.0,99464.0,8.37435977]
[1746713048220,0.00063719,99465.0,99464.0,2.213617]
[1746713048430,0.00063719,99465.0,99464.0,2.22568822]
[1746713048846,0.02113719,99465.0,99464.0,0.93781822]
[1746713049255,0.02113719,99465.0,99464.0,0.84051822]
[1746713049547,0.01813719,99465.0,99464.0,0.84051822]
[1746713049741,0.01913719,99465.0,99464.0,0.84051822]
[1746713050131,0.01813719,99465.0,99464.0,0.74321822]
[1746713050551,0.02013719,99465.0,99464.0,0.22320999]
[1746713050944,0.02013719,99465.0,99464.0,4.20005399]
[1746713051149,0.02013719,99465.0,99464.0,2.79583299]
[1746713052960,0.00363719,99465.0,99464.0,2.79583299]
[1746713056404,0.01983719,99465.0,99464.0,0.90823299]
[1746713056776,0.01924763,99465.0,99464.0,0.73333299]
[1746713057669,0.03524763,99465.0,99464.0,0.53225522]
[1746713057892,0.0155,99453.0,99447.0,0.34]
[1746713058181,0.0313,99453.0,99452.0,0.560193]
[1746713058392,0.03381379,99453.0,99452.0,0.560193]
[1746713058593,0.03381379,99453.0,99452.0,0.58271112]
[1746713058824,0.03381379,99453.0,99452.0,0.16441112]
[1746713059311,0.01801379,99453.0,99452.0,0.16441112]
[1746713059695,0.01005449,99458.0,99453.0,0.010055]
[1746713060044,0.0164,99462.0,99455.0,0.01005479]
[1746713060256,0.01005419,99461.0,99456.0,0.01005469]
[1746713060443,0.02505419,99461.0,99458.0,0.20108827]
[1746713061745,0.02905419,99461.0,99458.0,0.20108827]
[1746713062196,0.01005439,99459.0,99455.0,0.20109192]
[1746713062583,0.02555449,99458.0,99455.0,0.20109192]
[1746713062791,0.01005449,99458.0,99450.0,0.36465617]
[1746713062991,0.21115293,99455.0,99450.0,0.37471147]
[1746713063191,0.0165,99453.0,99450.0,0.36465617]
[1746713063392,0.0165,99453.0,99451.0,3.99722563]
[1746713063595,0.01005489,99454.0,99451.0,0.34]
[1746713063748,0.01005489,99454.0,99452.0,2.25238]
[1746713063947,0.0165,99453.0,99452.0,2.15238]
[1746713064260,0.0165,99453.0,99452.0,4.612505]
[1746713064450,0.01005459,99457.0,99452.0,4.612505]
[1746713064650,0.001,99453.0,99452.0,4.6225601]
[1746713064845,0.001,99453.0,99452.0,6.604984]
[1746713065088,0.002,99453.0,99452.0,6.604984]
[1746713065271,0.001,99453.0,99452.0,6.604984]
[1746713065912,0.001,99453.0,99452.0,5.530205]
[1746713066128,0.001,99453.0,99452.0,2.047805]
[1746713066456,0.001,99453.0,99452.0,3.194105]
[1746713066657,0.002,99453.0,99452.0,3.194105]
[1746713066858,0.0174,99453.0,99452.0,2.015603]
[1746713067186,0.20310001,99453.0,99451.0,0.36031872]